Workbook

Sheet General Input
A2: CDS - DELTA-P CALCULATIONS FOR SINGLE AND MULTI-PHASE FLOWS
A6: General Information | D6: Input Data
A7: JOB | D7: MP DP calculation
A8: CLIENT | D8: XYZ
A9: ITEM NO. | D9: Line#101
A10: LOCATION | D10: Pune
A11: DESIGN ENGINEER / Rev.# | D11: abc | E11: 0

Sheet Process Input
A2: CDS - DELTA-P CALCULATIONS FOR SINGLE AND MULTI-PHASE FLOWS
Q3: Multi-phase
Q4: Single phase
A5: Flow type: | E5: =IF(Q3="Single phase",1,2) -> 2 | Q5: Multi-phase
G6: Realative Pipe roughness= | J6: 1 | K6: mm | N6: Relative Rougness of the pipe
K7: =J6/1000 -> 0.001 | N7: Pipe inside diameter
A8: =IF(E5=1,"Input Values for Single Phase Flow:","") ->  | G8: =IF(E5=2,"Input Values for Multi-phase Flow:","") -> Input Values for Multi-phase Flow: | N8: Density of the fluid
E9: =D10/1000 -> 0 | F9: =D11/1000 -> 0 | L9: =J11/1000 -> 0.1
F10: =39.37008*E9 -> 0 | L10: =39.37008*K7 -> 0.03937008 | N10: Viscosity of the fluid
A11: =IF(E5=1,N7," ") ->  | E11: =IF(E5=1,"mm","") ->  | F11: =39.37008*F9 -> 0 | G11: =IF(E5=2,N16,"") -> Pipe inside diameter | J11: 100 | K11: =IF(E5=2,"mm","") -> mm | L11: =39.37008*L9 -> 3.937008 | N11: Mass flow rate of the fluid
A12: =IF(E5=1,N8,"") ->  | E12: =IF(E5=1,"kg/m3","") ->  | F12: =0.062426*D12 -> 0 | G12: =IF(E5=2,N17,"") -> Viscosity of the liquid | J12: 1 | K12: =IF(E5=2,"cP","") -> cP | L12: =J12 -> 1
A13: =IF(E5=1,N10,"") ->  | E13: =IF(E5=1,"cP","") ->  | F13: =D13 -> 0 | G13: =IF(E5=2,N18,"") -> Mass flow rate of the vapour | J13: 1000 | K13: =IF(E5=2,"kg/hr","") -> kg/hr | L13: =2.20462*J13 -> 2204.62
A14: =IF(E5=1,N11,"") ->  | E14: =IF(E5=1,"kg/hr","") ->  | F14: =2.20462*D14 -> 0 | G14: =IF(E5=2,N19,"") -> Mass flow rate of the liquid | J14: 2000 | K14: =IF(E5=2,"kg/hr","") -> kg/hr | L14: =2.20462*J14 -> 4409.24
G15: =IF(E5=2,N20,"") -> Density of the liquid | J15: 800 | K15: =IF(E5=2,"kg/m3","") -> kg/m3 | L15: =0.062426*J15 -> 49.9408
G16: =IF(E5=2,N21,"") -> Density of the vapour | J16: 0.9 | K16: =IF(E5=2,"kg/m3","") -> kg/m3 | L16: =0.062426*J16 -> 0.0561834 | N16: Pipe inside diameter
G17: =IF(E5=2,N22,"") -> Surface tension of liquid | J17: 12 | K17: =IF(E5=2,"dyne/cm","") -> dyne/cm | L17: =J17 -> 12 | N17: Viscosity of the liquid
G18: =IF(E5=2,N23,"") -> Viscosity of the vapour | J18: 0.009 | K18: =IF(E5=2,"cP","") -> cP | L18: =J18 -> 0.009 | N18: Mass flow rate of the vapour
N19: Mass flow rate of the liquid
N20: Density of the liquid
N21: Density of the vapour
N22: Surface tension of liquid
N23: Viscosity of the vapour

Sheet Calculations
A2: DELTA-P CALCULATIONS FOR SINGLE AND MULTI-PHASE VAPOR-LIQUID FLOWS
A6: E = | C6: =PI()*('Process Input'!F11/24)^2 -> 0 | F6: E = | H6: =3.14*('Process Input'!L11/24)^2 -> 0.08449670218
A7: Velocity, U = | C7: ='Process Input'!F14/(3600*'Process Input'!F12*C6) ->  | D7: ft/sec | E7: =C7*0.3048 ->  | F7: (pro V)^.5 = | H7: ='Process Input'!L16^0.5 -> 0.2370303778
A8: Reynold's No. , Nre = | C8: =123.9*'Process Input'!F11*C7*'Process Input'!F12/'Process Input'!F13 ->  | D8: N/A | F8: Bx = | H8: =531*('Process Input'!L14/'Process Input'!L13)*(('Process Input'!L12^0.33)/'Process Input'!L17)*(H7/('Process Input'!L15^0.166)) -> 10.9598262
A9: A = | C9: =(((LN(1/(((7/C8)^0.9)+('Process Input'!F10/'Process Input'!F11))))*2.45)^16) ->  | F9: (pro V*pro L)^.5 = | H9: =('Process Input'!L15*'Process Input'!L16)^0.5 -> 1.675065355
A10: B = | C10: =(37530/C8)^16 ->  | F10: By = | H10: =2.16*'Process Input'!L13/(H6*H9) -> 33644.6472
A11: Friction factor, f = | C11: =8*((((8/C8)^12)+(1/((C9+C10)^1.5)))^0.08) ->  | F11: Avg. fluid density, D = | H11: =(('Process Input'!L13+'Process Input'!L14)/(('Process Input'!L14/'Process Input'!L15)+('Process Input'!L13/'Process Input'!L16))) -> 0.1681718134 | I11: lb/ft3
A12: Pressure drop, P = | C12: =0.129*C11*'Process Input'!F12*C7^2/'Process Input'!F11 ->  | D12: psi/100 ft. of pipe | F12: Total flow rate, Q = | H12: ='Process Input'!L13+'Process Input'!L14 -> 6613.86 | I12: lb/hr
F13: Flow regime is | H13: =IF(J34="D","Dispersed",IF(J34="A","Annular",IF(J34="S","Slug","Bubble"))) -> Dispersed
F14: Velocity, U = | H14: =H12/(3600*H11*D36) -> 129.2883909 | I14: ft/sec | J14: =H14*0.3048 -> 39.40710156
F15: Prssure Drop = | H15: =J36 -> 7.989342523 | I15: psi/100 ft. of pipe
F16: Phi SQ = | H16: =H15/G45 -> 3.411082409
A17: =IF(C8<2100,"Laminar",IF(C8>4500,"Turbulent","Transition")) -> 
H30: Selection of regime
H31: Cond | I31: 1 | J31: =IF(H10>=80000,"D","N") -> N
H32: Cond | I32: 2 | J32: =IF(J31="D","D",IF(H10<=4000,"A,S","N")) -> N
C33: Dispersed/Annular/Slug/Bubble | H33: Cond | I33: 3 | J33: =IF(J32="D","D",IF(J32="A,S",IF(H8<=20,"A","S"),"N")) -> N
C34: D = | D34: ='Process Input'!L15 -> 49.9408 | F34: Now, | H34: Cond | I34: 4 | J34: =IF(J33="D","D",IF(J33="A","A",IF(J33="S","S",IF(H8>=300,"B",IF(H10<=30000,"A","D"))))) -> D
C35: Q = | D35: ='Process Input'!L14 -> 4409.24 | F35: H = | G35: =D42 -> 0.01135525012
C36: E = | D36: =H6 -> 0.08449670218 | F36: D = | G36: ='Process Input'!L16 -> 0.0561834 | I36: Delta P = | J36: =IF(J34="D",B50,IF(J34="A",J50,IF(J34="S",I42,K42))) -> 7.989342523 | K36: psi
C37: U = | D37: =D35/(3600*D34*D36) -> 0.2902458265 | F37: Q = | G37: ='Process Input'!L13 -> 2204.62
C38: Nre = | D38: =123.9*'Process Input'!L11*D37*D34/'Process Input'!L12 -> 7070.645804 | F38: V = | G38: ='Process Input'!L18 -> 0.009
C39: A = | D39: =(((LN(1/(((7/D38)^0.9)+('Process Input'!L10/'Process Input'!L11))))*2.45)^16) -> 3.638004574e+16 | F39: U = | G39: =G37/(3600*G36*D36) -> 128.9981451
C40: B = | D40: =(37530/D38)^16 -> 3.969279798e+11 | F40: Nre = | G40: =123.9*'Process Input'!L11*G39*G36/G38 -> 392813.6558 | H40: Slug | J40: Bubble
C41: W = | D41: =8*((((8/D38)^12)+(1/((D39+D40)^1.5)))^0.08) -> 0.0823731795 | F41: A = | G41: =(((LN(1/(((7/G40)^0.9)+('Process Input'!L10/'Process Input'!L11))))*2.45)^16) -> 6.769854395e+16 | H41: M = | I41: =(((1190*((G46^0.5)^0.815))/('Process Input'!L14/H6)^0.5)^2) -> 0.3526272839 | J41: M = | K41: =((14.2*((G46^0.5)^0.75)/(('Process Input'!L14/H6)^0.1))^2) -> 0.4219444702
C42: P = | D42: =(0.129*D41*D34*D37^2)/'Process Input'!L11 -> 0.01135525012 | F42: B = | G42: =(37530/G40)^16 -> 4.820274775e-17 | H42: C = | I42: =I41*G45 -> 0.8259138351 | J42: C = | K42: =K41*G45 -> 0.9882666246
F43: W = | G43: =8*((((8/G40)^12)+(1/((G41+G42)^1.5)))^0.08) -> 0.07645756588
F44: P = | G44: =(0.129*G43*G36*G39^2)/'Process Input'!L11 -> 2.342172239
F45: T = | G45: =G44 -> 2.342172239
A46: Dispersed | F46: Z = | G46: =G35/G45 -> 0.0048481704 | H46: Annular
B47: Z=<.1 | D47: Z=<.5 | F47: Else | I47: I<=10 | J47: Else
A48: M = | B48: =((36.67*(G46-0.01))+3.6) -> 3.411082409 | C48: M = | D48: =((14.75*(G46-0.1))+6.9) -> 5.496510513 | E48: M = | F48: =((6.71*(-0.5))+12.8) -> 9.445 | H48: M = | I48: =(((4.8-(0.31*'Process Input'!L11))*((G46^0.5)^(0.34-(0.02*'Process Input'!L11))))^2) -> 3.184093832 | J48: M = | K48: =((1.68*((G46^0.5)^0.13))^2) -> 1.411704137
A49: Since Z = | B49: =G46 -> 0.0048481704 | C49: Thus, M = | D49: =IF(G46<=0.1,B48,IF(G46<=0.5,D48,F48)) -> 3.411082409 | H49: For I = | I49: ='Process Input'!L11 -> 3.937008 | J49: Thus, M = | K49: =IF('Process Input'!L11<=10,Calculations!I48,Calculations!K48) -> 3.184093832
A50: C = | B50: =D49*G45 -> 7.989342523 | I50: C = | J50: =K49*G45 -> 7.45769618

Sheet Results
A1: Pressure drop calculation of Single or Multiphase Vapor Liquid Flow: Results
A6: Results:
A7: Phase of flow | E7: =IF('Process Input'!E5=1,"Single-phase","Multi-phase") -> Multi-phase
A8: =IF(E7="Single","","Flow Regime is ") -> Flow Regime is | E8: =IF(E7="Single-phase",Calculations!A17,Calculations!H13) -> Dispersed | F8: flow
A9: Velocity | E9: =IF(E7 = "Single-phase",Calculations!E7,Calculations!J14) -> 39.40710156 | F9: m/sec
A10: Pressure drop | E10: =IF(E7 = "Single-phase",Calculations!C12,Calculations!H15) -> 7.989342523 | F10: psi/100ft of pipe
E11: =E10*0.48/100000 -> 3.834884411e-05 | F11: bar/m of pipe
D14: Client | G14: ='General Input'!D8 -> XYZ
D15: Location | G15: ='General Input'!D10 -> Pune
D16: Item No. | G16: ='General Input'!D9 -> Line#101
D17: Design Engr | G17: ='General Input'!D11 -> abc
D18: Revision No. | G18: ='General Input'!E11 -> 0
D19: Date | G19: =NOW() -> 2020-09-26T21:44:03.010

Sheet Sheet1
